bitfinex/quotes_ETHUSD_20220109
["timestamp","ask_amount","ask_price","bid_price","bid_amount"]
[1641711700611,18.62630879,3139.8,3139.7,0.00227369]
[1641711700907,19.08430879,3139.8,3139.7,0.00227369]
[1641711701910,19.88109879,3139.8,3139.7,0.00227369]
[1641711703848,12.04965334,3139.7,3139.4,0.01023628]
[1641711704049,4.05,3139.4,3139.2,6.02023628]
[1641711704247,14.93573597,3139.3,3139.2,6.02023628]
[1641711704447,22.88573597,3139.3,3139.2,6.02023628]
[1641711704648,5.69499497,3139.1,3139.0,0.05870717]
[1641711704847,10.58644997,3139.1,3139.0,0.05870717]
[1641711705047,18.58644997,3139.1,3139.0,0.06268613]
[1641711705248,18.22699497,3139.1,3139.0,0.06268613]
[1641711705447,19.02398497,3139.1,3139.0,0.06268613]
[1641711705647,31.02398497,3139.1,3139.0,0.06268613]
[1641711705846,18.02398497,3139.1,3139.0,0.06268613]
[1641711706051,25.97899,3139.1,3139.0,0.06268613]
[1641711706247,25.182,3139.1,3139.0,0.06268613]
[1641711706454,19.458,3139.1,3139.0,0.06268613]
[1641711706895,19.458,3139.1,3139.0,6.41268613]
[1641711707294,15.11518259,3139.1,3139.0,0.06268613]
[1641711707696,15.11518259,3139.1,3139.0,0.06623854]
[1641711707899,15.11518259,3139.1,3139.0,0.06268613]
[1641711708596,13.0,3139.1,3139.0,0.06268613]
[1641711709096,13.0,3139.1,3139.0,0.07292241]
[1641711709298,13.0,3139.1,3139.0,0.06268613]
[1641711710850,13.458,3139.1,3139.0,4.51623854]
[1641711711050,13.458,3139.1,3139.0,4.51268613]
[1641711713052,13.458,3139.1,3139.0,0.06268613]
[1641711714054,13.458,3139.1,3139.0,0.06623854]
[1641711714304,13.458,3139.1,3139.0,0.06268613]
[1641711715695,13.44776372,3139.1,3139.0,0.06268613]
[1641711717895,14.5804802,3139.1,3139.0,0.06268613]
[1641711718360,14.57692779,3139.1,3139.0,0.06268613]
[1641711718562,13.44421131,3139.1,3139.0,0.06268613]
[1641711723195,12.98621131,3139.1,3139.0,0.06268613]
[1641711723394,0.07434397,3139.6,3139.0,1.16968613]
[1641711723596,0.07434397,3139.6,3139.1,3.10604062]
[1641711723797,0.07434397,3139.6,3139.3,0.79658]
[1641711724195,0.07434397,3139.6,3139.4,0.00170527]
[1641711725201,0.458,3139.8,3139.4,0.00170527]
[1641711725399,1.25463,3139.8,3139.4,0.00170527]
[1641711725652,1.28520008,3139.7,3139.4,0.00170527]
[1641711725852,1.28520008,3139.7,3139.1,1.58809252]
[1641711726053,8.28520008,3139.7,3139.1,1.58809252]
[1641711726253,7.28520008,3139.7,3139.2,2.70243377]
[1641711726556,8.0,3139.6,3139.3,0.00227369]
[1641711727152,8.0,3139.7,3139.3,0.00227369]
[1641711727352,8.0,3139.7,3139.1,0.00341054]
[1641711727755,1.25463,3139.8,3139.1,1.58809252]
[1641711727756,1.00581286,3139.5,3139.1,1.58809252]
[1641711728154,7.0,3139.4,3139.2,0.00284212]
[1641711728356,7.0,3139.4,3139.2,1.5875241]
[1641711728557,7.0,3139.3,3139.2,1.5875241]
[1641711728758,7.0,3139.3,3139.2,1.58468198]
[1641711729057,0.458,3139.8,3139.2,1.58468198]
[1641711729500,0.53234397,3139.8,3139.3,0.00227369]
[1641711730501,0.53234397,3139.8,3139.2,0.00284212]
[1641711731302,0.458,3139.8,3139.2,1.5875241]
[1641711731504,8.458,3139.8,3139.2,1.5875241]
[1641711731703,8.458,3139.8,3139.3,0.79659]
[1641711732104,8.458,3139.8,3139.4,0.00170527]
[1641711732608,7.0,3139.7,3139.4,0.00170527]
[1641711732805,10.0,3139.7,3139.4,0.00170527]
[1641711733053,6.0,3139.6,3139.4,0.00170527]
[1641711733248,0.458,3139.7,3139.4,0.00170527]
[1641711736049,0.458,3139.7,3139.2,0.00284212]
[1641711736451,1.0305733,3139.4,3139.3,1.58468198]
[1641711736652,1.02033702,3139.4,3139.3,1.58468198]
[1641711737307,0.458,3139.7,3139.2,0.00284212]
[1641711737506,0.83191049,3139.4,3139.2,0.00284212]
[1641711738305,0.83191049,3139.4,3139.2,0.79946212]
[1641711738506,0.83191049,3139.4,3139.3,1.58468198]
[1641711739408,0.82835808,3139.4,3139.3,1.58468198]
[1641711740953,1.59008277,3139.6,3139.2,1.5875241]
[1641711741560,1.5956937,3139.7,3139.2,1.5875241]
[1641711741955,6.0,3139.6,3139.2,1.5875241]
[1641711742156,9.0,3139.6,3139.2,1.5875241]
[1641711742556,9.0,3139.6,3139.3,2.38126198]
[1641711742960,9.0,3139.6,3139.4,0.00170527]
[1641711743356,9.0,3139.6,3139.5,1.58468198]
[1641711743656,0.458,3139.7,3139.5,2.38234883]
[1641711743856,0.458,3139.7,3139.5,3.17888463]
[1641711744498,0.458,3139.7,3139.5,1.58581883]
[1641711745699,0.458,3139.7,3139.5,0.00113685]
[1641711746300,6.458,3139.7,3139.5,0.00113685]
[1641711746900,6.458,3139.7,3139.5,0.79769495]
[1641711747101,0.458,3139.7,3139.5,0.79769495]
[1641711748053,0.458,3139.7,3139.6,6.88468198]
[1641711749053,0.458,3139.7,3139.6,5.3]
[1641711749755,0.458,3139.7,3139.5,0.79769495]
[1641711750055,0.458,3139.7,3139.5,0.00113685]
[1641711750657,0.458,3139.7,3139.6,1.5719252]
[1641711751260,0.458,3139.7,3139.5,1.57306205]
[1641711751261,1.84421788,3139.7,3139.5,1.57306205]
[1641711751906,14.84421788,3139.7,3139.5,1.57306205]
[1641711752507,7.0,3139.6,3139.5,1.57306205]
[1641711752807,7.7967,3139.6,3139.5,0.00113685]
[1641711753807,0.7967,3139.6,3139.5,0.00113685]
[1641711754006,1.84421788,3139.7,3139.5,0.00113685]
[1641711754505,8.0,3139.6,3139.5,0.00113685]
[1641711756656,9.0825899,3139.6,3139.5,0.00113685]
[1641711756859,13.16051159,3139.6,3139.5,0.00113685]
[1641711757065,9.8792599,3139.6,3139.5,0.00113685]
[1641711757258,15.8792599,3139.6,3139.5,0.00113685]
[1641711757662,15.8792599,3139.6,3139.4,0.00170527]
[1641711757859,15.86902362,3139.6,3139.4,0.00170527]
[1641711758062,6.0,3139.5,3139.4,0.00170527]
[1641711758463,6.0,3139.5,3139.2,0.00284212]
[1641711758661,11.0,3139.5,3139.2,0.00284212]
[1641711758861,0.458,3139.4,3139.2,0.00284212]
[1641711759063,7.86975257,3139.3,3139.2,0.00284212]
[1641711759304,29.32775257,3139.3,3139.2,0.00284212]
[1641711759500,29.39573324,3139.3,3139.2,0.00284212]
[1641711759900,30.39573324,3139.3,3139.2,0.00284212]
[1641711760100,44.93766724,3139.3,3139.2,0.00284212]
[1641711760304,56.24768324,3139.3,3139.2,0.00284212]
[1641711760502,63.46184116,3139.3,3139.2,0.00284212]
[1641711760703,59.32159116,3139.3,3139.2,0.00284212]
[1641711760902,56.24873859,3139.3,3139.1,0.00341054]
[1641711761205,23.992391,3139.2,3139.1,0.00341054]
[1641711761403,49.450391,3139.2,3139.1,0.00341054]
[1641711762404,44.884091,3139.2,3139.1,0.00341054]
[1641711762804,43.884091,3139.2,3139.1,0.00341054]
[1641711765968,51.177972,3139.2,3139.1,0.00341054]
[1641711766166,52.777972,3139.2,3139.1,0.00341054]
[1641711766817,52.727972,3139.2,3139.1,0.00341054]
[1641711767006,58.807646,3139.2,3139.1,0.00341054]
[1641711767207,55.308648,3139.2,3139.1,0.00341054]
[1641711767407,54.307646,3139.2,3139.1,0.00341054]
[1641711767807,61.968536,3139.2,3139.1,0.00341054]
[1641711768007,54.377408,3139.2,3139.1,0.00341054]
[1641711768208,52.777408,3139.2,3139.1,0.00341054]
[1641711768909,64.751391,3139.2,3139.1,0.00341054]
[1641711769109,54.377408,3139.2,3139.1,0.00341054]
[1641711769307,52.777408,3139.2,3139.1,0.00341054]
[1641711769507,52.777408,3139.2,3137.9,0.14381901]
[1641711769508,13.15,3138.5,3137.9,0.14381901]
[1641711769712,6.88971047,3138.6,3136.0,12.32]
[1641711769713,1.87171326,3137.0,3136.0,12.32]
[1641711769910,1.87171326,3137.0,3135.8,6.1335631]
[1641711769911,4.34335233,3136.0,3135.8,6.1335631]
[1641711770109,5.37785233,3136.0,3135.8,6.1335631]
[1641711770309,5.37785233,3136.0,3135.9,1.31979155]
[1641711771354,4.34335233,3136.0,3135.9,1.31979155]
[1641711771956,4.34335233,3136.0,3135.9,6.96979155]
[1641711772354,0.458,3136.3,3136.0,10.1]
[1641711772755,0.00170527,3136.2,3136.1,3.01947276]
[1641711772955,0.00170527,3136.2,3135.9,4.49624548]
[1641711773157,0.458,3136.9,3136.1,35.53]
[1641711773359,0.458,3136.9,3136.2,3.96970555]
[1641711773556,0.458,3136.9,3136.3,22.73]
[1641711773557,0.00113685,3136.4,3136.3,22.73]
[1641711773757,0.00113685,3136.4,3136.3,18.68]
[1641711773956,0.00113685,3136.4,3136.3,18.98]
[1641711774821,0.00113685,3136.4,3136.3,19.28]
[1641711775017,0.00113685,3136.4,3136.3,23.03]
[1641711775220,0.00113685,3136.4,3136.3,20.28]
[1641711776020,0.00113685,3136.4,3136.3,25.68]
[1641711777023,0.00113685,3136.4,3136.3,34.18]
[1641711777222,0.00113685,3136.4,3136.3,25.68]
[1641711777926,0.00113685,3136.4,3136.3,1.6]
[1641711778150,0.00113685,3136.4,3136.3,4.88366059]
[1641711778954,0.00113685,3136.4,3136.3,16.08366059]
[1641711779152,0.00113685,3136.4,3136.3,21.96366059]
[1641711779853,0.00113685,3136.4,3136.3,3.28366059]
[1641711780051,0.00113685,3136.4,3136.3,20.13366059]
[1641711780252,0.00113685,3136.4,3136.3,38.81366059]
[1641711780452,0.00113685,3136.4,3136.3,39.11366059]
[1641711780654,0.00113685,3136.4,3136.3,40.69334037]
[1641711781268,0.00113685,3136.4,3136.3,39.11366059]
[1641711781455,5.0913484,3137.6,3136.4,12.05]
[1641711781812,0.00341054,3137.0,3136.5,3.31879553]
[1641711782104,0.458,3137.6,3136.5,3.31879553]
[1641711782105,0.00284211,3136.9,3136.5,3.61879553]
[1641711782501,0.00227369,3136.8,3136.6,1.4216186]
[1641711782701,0.00227369,3136.8,3136.7,11.85989296]
[1641711782902,0.458,3137.6,3136.7,3.05989296]
[1641711783103,0.458,3137.6,3136.7,3.35989296]
[1641711783401,0.07434391,3137.3,3136.7,3.35989296]
[1641711783804,0.00454738,3137.2,3136.7,3.35989296]
[1641711784202,25.0,3137.0,3136.7,0.3]
[1641711784402,25.0,3137.0,3136.4,1.57967978]
[1641711784606,0.00284211,3136.9,3136.4,1.57967978]
[1641711785004,0.00227369,3136.8,3136.2,1.57967978]
[1641711785205,0.00227369,3136.8,3136.3,2.85972061]
[1641711785407,25.0,3137.0,3136.3,3.15972061]
[1641711785408,0.00170527,3136.7,3136.3,3.15972061]
[1641711785855,0.00113684,3136.6,3136.3,4.73940039]
[1641711786258,0.00284211,3136.9,3136.3,1.57967978]
[1641711786456,0.00284211,3136.9,3136.4,2.9902942]
[1641711786658,0.00227369,3136.8,3136.4,2.9902942]
[1641711786856,0.00227369,3136.8,3136.5,1.0]
[1641711787057,0.00170527,3136.7,3136.4,0.3]
[1641711787260,0.00170527,3136.7,3136.5,0.3]
[1641711787556,0.00113684,3136.6,3136.5,0.3]
[1641711787756,0.00113684,3136.6,3136.5,18.44527523]
[1641711787957,0.00113684,3136.6,3136.5,20.02495501]
[1641711788257,0.56167491,3136.9,3136.6,8.6]
[1641711788460,25.0,3137.0,3136.7,2.91208349]
[1641711788656,0.00113685,3136.8,3136.7,4.21208349]
[1641711788858,0.00113685,3136.8,3136.7,9.81208349]
[1641711790004,20.65610866,3137.0,3136.8,4.65]
[1641711790404,20.65610866,3137.0,3136.9,2.84647633]
[1641711790607,0.458,3138.3,3137.1,16.85]
[1641711790805,1.0,3139.3,3137.1,16.85]
[1641711790806,0.458,3139.6,3138.2,0.01272128]
[1641711791008,3.5,3139.5,3138.2,1.11792128]
[1641711791205,0.00852635,3138.3,3138.2,4.40514876]
[1641711791505,0.56056631,3138.8,3138.2,1.11792128]
[1641711791707,1.2093548,3138.6,3138.2,1.1052]
[1641711792104,0.797,3138.4,3138.2,1.1052]
[1641711792307,0.797,3138.4,3137.8,12.8891]
[1641711792505,0.797,3138.4,3137.8,5.4141]
[1641711792905,1.109093,3138.1,3137.8,5.4141]
[1641711793156,1.06249654,3138.3,3138.2,0.090907]
[1641711793556,1.07102289,3138.3,3138.2,0.090907]
[1641711794759,5.47102289,3138.3,3138.2,0.090907]
[1641711794960,1.07102289,3138.3,3138.2,0.090907]
[1641711795157,0.00852635,3138.3,3138.2,0.090907]
[1641711795759,4.10852635,3138.3,3138.2,0.090907]
[1641711796160,15.10852635,3138.3,3138.2,0.090907]
[1641711796462,16.34502156,3138.3,3138.2,0.090907]
[1641711796913,12.24502156,3138.3,3138.2,0.090907]
[1641711797313,11.00852635,3138.3,3138.2,0.090907]
[1641711797713,0.00852635,3138.3,3138.2,15.15722821]
[1641711797910,0.00852635,3138.3,3138.2,0.390907]
[1641711798110,0.00852635,3138.3,3138.2,5.508807]
[1641711798511,0.00852635,3138.3,3138.2,0.090907]
[1641711802056,0.00852635,3138.3,3137.7,0.79685]
[1641711802256,0.00852635,3138.3,3137.7,1.39685]
[1641711802456,0.00795793,3138.2,3137.7,1.39685]
[1641711802660,0.00795793,3138.2,3137.7,0.79685]
[1641711802858,0.0073895,3138.1,3137.7,0.79685]
[1641711803158,0.00682108,3138.0,3137.6,7.76668435]
[1641711803557,0.00625266,3137.9,3137.6,6.1909]
[1641711804059,0.00568423,3137.8,3137.6,6.1909]
[1641711804327,0.00568423,3137.8,3137.6,10.51777803]
[1641711804512,0.00511581,3137.7,3137.6,10.51777803]
[1641711804713,0.00511581,3137.7,3137.6,7.16668435]
[1641711805320,0.00511581,3137.7,3137.6,7.76668435]
[1641711805516,0.00511581,3137.7,3137.6,8.76668435]
[1641711805715,0.00511581,3137.7,3137.6,16.1909]
[1641711805916,22.79693,3138.5,3137.7,5.9]
[1641711806116,22.79693,3138.5,3137.7,6.2]
[1641711806416,0.0726896,3138.2,3137.7,6.2]
[1641711806815,0.00227369,3138.1,3137.7,5.9]
[1641711807215,0.00170527,3138.0,3137.6,7.46668435]
[1641711807415,0.00170527,3138.0,3137.6,7.76668435]
[1641711807615,0.00113685,3137.9,3137.6,7.16668435]
[1641711808058,0.00113685,3137.9,3137.5,1.57578435]
[1641711808660,1.08882139,3137.9,3137.3,5.45688435]
[1641711808853,1.08882139,3137.9,3137.3,1.57578435]
[1641711809054,1.08882139,3137.9,3137.4,0.00170527]
[1641711809859,1.88593139,3137.9,3137.4,1.57748962]
[1641711810257,1.88593139,3137.9,3137.5,0.00113685]
[1641711811159,5.724,3137.7,3137.5,0.00113685]
[1641711811362,15.40531,3137.6,3137.5,0.00113685]
[1641711811562,16.47329067,3137.6,3137.5,0.00113685]
[1641711811827,27.47329067,3137.6,3137.5,0.00113685]
[1641711812618,27.47329067,3137.6,3137.1,0.00341054]
[1641711812819,27.0,3137.5,3137.1,0.00341054]
[1641711813018,2.44771055,3137.4,3137.1,0.00341054]
[1641711813222,10.49720158,3137.2,3137.1,0.00341054]
[1641711813418,10.95520158,3137.2,3137.1,0.00341054]
[1641711813818,31.95520158,3137.2,3137.1,0.00341054]
[1641711814421,32.05537,3137.2,3137.1,0.00341054]
[1641711817360,40.05537,3137.2,3137.1,0.00341054]
[1641711817759,30.25537,3137.2,3137.1,0.00341054]
[1641711821728,28.62591358,3137.2,3137.1,0.00341054]
[1641711822929,29.42328358,3137.2,3137.1,0.00341054]
[1641711824862,28.62591358,3137.2,3137.1,0.00341054]
[1641711825460,21.0,3137.2,3137.1,0.00341054]
[1641711825662,16.65515111,3137.2,3137.1,0.00341054]
[1641711826362,16.65515111,3137.2,3137.1,1.60586092]
[1641711828015,16.65515111,3137.2,3137.1,0.00341054]
[1641711829615,18.0,3137.2,3137.1,0.00341054]
[1641711830216,14.0,3137.2,3137.1,0.00341054]
[1641711831061,13.31190857,3137.2,3137.1,20.0231067]
[1641711831265,0.00113685,3137.9,3137.2,35.53]
[1641711831458,0.00113685,3137.9,3137.3,0.3]
[1641711831659,0.00113685,3137.9,3137.3,3.17196985]
[1641711832259,0.00113685,3137.9,3137.5,1.60245038]
[1641711833459,0.00113685,3137.9,3137.6,2.85805368]
[1641711833864,0.00113685,3137.9,3137.8,5.55245038]
[1641711834505,0.00113685,3137.9,3137.8,3.95]
[1641711834908,0.00113685,3137.9,3137.8,6.78564132]
[1641711835508,0.00113685,3137.9,3137.8,3.95]
[1641711835709,0.00113685,3137.9,3137.7,1.60245038]
[1641711837312,0.00113685,3137.9,3137.5,1.60245038]
[1641711837611,1.20251516,3137.7,3137.5,1.60245038]
[1641711838061,1.20251516,3137.7,3137.6,1.60245038]
[1641711838256,11.80251516,3137.7,3137.6,1.60245038]
[1641711838656,24.80251516,3137.7,3137.6,5.038e-05]
[1641711838857,28.65225426,3137.7,3137.6,5.038e-05]
[1641711839160,28.65225426,3137.7,3137.3,0.00227369]
[1641711839161,27.85508426,3137.7,3137.3,0.00227369]
[1641711839356,1.0,3137.6,3137.3,0.00227369]
[1641711839560,0.458,3137.5,3137.2,0.00284212]
[1641711839958,2.0528243,3137.5,3137.2,0.00284212]
[1641711840157,2.0528243,3137.5,3137.1,0.00341054]
[1641711840357,5.83260643,3137.4,3137.1,0.00341054]
[1641711840558,1.39988974,3137.2,3137.1,0.00341054]
[1641711840756,1.85788974,3137.2,3137.1,0.00341054]
[1641711841258,9.85788974,3137.2,3137.1,0.00341054]
[1641711841457,1.85788974,3137.2,3137.1,0.00341054]
[1641711841934,12.65523974,3137.2,3137.1,0.00341054]
[1641711846867,13.65523974,3137.2,3137.1,0.00341054]
[1641711847366,12.25535,3137.2,3137.1,0.00341054]
[1641711850614,12.25535,3137.2,3137.1,1.60862624]
[1641711851414,10.25535,3137.2,3137.1,1.60862624]
[1641711852713,10.25535,3137.2,3137.1,0.00341054]
[1641711854060,10.25535,3137.2,3137.1,1.61586314]
[1641711854462,10.25535,3137.2,3137.1,0.00341054]
[1641711855260,7.25535,3137.2,3137.1,0.00341054]
[1641711855465,7.25535,3137.2,3137.1,1.61586314]
[1641711856065,7.25535,3137.2,3137.1,0.00341054]
[1641711856066,6.458,3137.2,3137.1,0.00341054]
[1641711862370,4.82863724,3137.2,3137.1,0.00341054]
[1641711863065,4.82863724,3137.3,3137.1,0.00341054]
[1641711863267,5.28663724,3137.3,3137.1,0.00341054]
[1641711863867,5.28663724,3137.3,3137.2,1.6168858]
[1641711864066,0.458,3137.3,3137.2,1.6168858]
[1641711864310,0.458,3137.3,3137.2,1.61972792]
[1641711864510,6.458,3137.3,3137.2,1.61972792]
[1641711865013,10.808,3137.3,3137.2,1.61972792]
[1641711866311,10.808,3137.3,3137.2,0.00284212]
[1641711866712,10.808,3137.3,3137.1,0.00341054]
[1641711867112,11.0,3137.2,3137.1,0.00341054]
[1641711867413,11.79739,3137.2,3137.1,0.00341054]
[1641711869185,13.37836117,3137.2,3137.1,0.00341054]
[1641711869387,13.37836117,3137.2,3136.0,3.34038]
[1641711869388,1.62029634,3136.8,3135.9,1.2263]
[1641711869586,1.62029634,3136.8,3135.0,1.2248]
[1641711869587,16.8,3136.6,3135.3,3.17705668]
[1641711869785,16.8,3136.6,3136.2,0.00511581]
[1641711869786,0.458,3136.5,3136.2,0.00511581]
[1641711869985,22.524,3136.3,3136.2,0.00511581]
[1641711870192,22.982,3136.3,3134.7,0.01364216]
[1641711870390,22.982,3136.3,3134.9,6.16]
[1641711870391,1.077699,3135.4,3134.9,6.16]
[1641711870587,0.458,3135.3,3134.9,6.16]
[1641711870786,0.458,3135.3,3135.0,0.01193689]
[1641711871088,0.458,3135.7,3135.0,0.01193689]
[1641711871489,0.458,3135.7,3135.0,1.60706689]
[1641711871912,0.453,3135.7,3135.1,0.01136847]
[1641711872211,0.453,3135.7,3135.3,1.28519776]
[1641711872613,0.453,3135.7,3135.4,0.0096632]
[1641711872817,5.0,3135.9,3135.4,0.0096632]
[1641711873314,0.458,3136.1,3135.4,0.0096632]
[1641711873315,5.458,3136.1,3135.4,0.0096632]
[1641711873513,0.458,3136.1,3135.4,0.0096632]
[1641711873718,4.0,3136.0,3135.6,0.79746]
[1641711874113,4.0,3136.0,3135.7,0.00795793]
[1641711874513,4.0,3136.2,3135.4,0.0096632]
[1641711875114,4.0,3136.2,3135.3,1.26972409]
[1641711875317,4.0,3136.2,3135.3,1.56972409]
[1641711875570,4.0,3136.2,3135.4,0.0096632]
[1641711875761,4.7975884,3136.2,3135.4,0.0096632]
[1641711875961,0.79755,3136.1,3135.4,0.0096632]
[1641711877563,4.0,3136.2,3135.4,0.0096632]
[1641711878464,1.2555,3136.3,3135.4,0.0096632]
[1641711878465,12.2555,3136.3,3135.4,0.8071532]
[1641711878666,12.2555,3136.3,3135.5,0.7975]
[1641711878865,5.0,3136.2,3136.0,1.61560579]
[1641711879312,5.0,3136.2,3136.1,0.00568424]
[1641711882014,7.0530498,3136.3,3136.1,0.00568424]
[1641711882415,14.2,3136.2,3136.1,0.00568424]
[1641711883663,14.2,3136.2,3135.8,0.00738951]
[1641711883863,0.7977,3136.1,3135.8,0.00738951]
[1641711884064,8.3930914,3136.1,3135.8,0.00738951]
[1641711884266,9.1907914,3136.1,3135.8,0.00738951]
[1641711884464,9.1907914,3136.1,3135.7,0.00795793]
[1641711884665,1.4213548,3135.8,3135.7,0.00795793]
[1641711884866,6.7690648,3135.8,3135.7,1.62356372]
[1641711885264,2.2190648,3135.8,3135.7,1.62356372]
[1641711885666,0.458,3136.0,3135.7,0.00795793]
[1641711886068,0.458,3136.0,3135.6,0.00852635]
[1641711886267,0.458,3136.0,3135.8,1.61560579]
[1641711886667,0.458,3136.0,3135.9,0.00682108]
[1641711887611,0.458,3136.0,3135.8,0.00738951]
[1641711888010,0.79756,3136.1,3135.9,1.61560579]
[1641711888413,1.5951563,3136.1,3136.0,0.00625266]
[1641711888811,10.1451563,3136.1,3136.0,0.00625266]
[1641711889413,1.5951563,3136.1,3136.0,0.00625266]
[1641711889815,5.5951563,3136.1,3135.9,0.00682108]
[1641711890415,8.0,3136.0,3135.9,0.00682108]
[1641711891264,8.0,3136.0,3135.9,1.62242687]
[1641711891863,8.0,3136.0,3135.9,0.00682108]
[1641711893164,9.59528,3136.0,3135.9,0.00682108]
[1641711893567,8.0,3136.0,3135.9,0.00682108]
[1641711893765,0.79756,3136.1,3135.9,0.00682108]
[1641711894166,3.0,3136.0,3135.9,0.00682108]
[1641711895824,3.0,3136.0,3135.9,1.62242687]
[1641711896726,3.0,3136.0,3135.9,0.00682108]
[1641711897525,3.0,3136.0,3135.9,1.62242687]
[1641711898963,10.0,3136.0,3135.9,1.62242687]
[1641711899160,11.59528,3136.0,3135.9,0.00682108]
[1641711899560,11.59528,3136.0,3135.3,0.01023162]
[1641711899760,1.20205031,3135.7,3135.3,0.01023162]
[1641711900063,1.20205031,3135.7,3135.6,1.61937785]
[1641711900064,1.99969031,3135.7,3135.6,1.61937785]
[1641711900261,11.59528,3136.0,3135.6,1.61937785]
[1641711900461,10.0,3136.0,3135.6,1.6279042]
[1641711900668,10.0,3136.0,3135.7,0.00795793]
[1641711900861,2.45315169,3136.8,3135.7,0.00795793]
[1641711901162,2.45315169,3136.8,3135.7,1.00795793]
[1641711901363,2.45315169,3136.8,3135.7,0.00795793]
[1641711901667,1.41769694,3136.7,3136.1,1.35549692]
[1641711901917,1.41769694,3136.7,3136.1,1.65549692]
[1641711902118,8.0,3136.6,3136.1,1.35549692]
[1641711902318,8.0,3136.6,3136.5,1.61804599]
[1641711902517,6.37035391,3136.6,3136.5,1.61804599]
[1641711902718,6.37035391,3136.6,3136.5,1.62145653]
[1641711903120,1.41769694,3136.7,3136.5,1.62145653]
[1641711903319,8.35,3136.6,3136.5,0.00341054]
[1641711903520,8.35,3136.6,3136.3,1.61804599]
[1641711903720,8.808,3136.6,3136.3,1.61804599]
[1641711903921,8.808,3136.6,3136.2,1.61804599]
[1641711904325,8.808,3136.6,3136.3,0.00454739]
[1641711904722,4.458,3136.6,3136.3,0.00454739]
[1641711906161,5.25545,3136.6,3136.3,0.00454739]
[1641711907463,6.0,3136.5,3136.3,0.00454739]
[1641711907664,0.79752,3136.4,3136.3,0.00454739]
[1641711908064,0.79752,3136.4,3136.1,0.00568424]
[1641711908467,0.79752,3136.4,3136.2,1.61804599]
[1641711908964,1.29609434,3136.3,3136.2,1.61804599]
[1641711909419,1.29609434,3136.3,3136.2,1.6231618]
[1641711911817,1.29609434,3136.3,3136.2,0.00511581]
[1641711912216,1.29609434,3136.3,3135.8,0.00738951]
[1641711912615,1.29609434,3136.3,3136.2,1.62122748]
[1641711913065,1.29609434,3136.3,3136.2,1.62634329]
[1641711914065,1.29609434,3136.3,3136.2,0.00511581]
[1641711914466,1.29609434,3136.3,3135.8,0.00738951]
[1641711914670,1.29609434,3136.3,3136.2,1.62557758]
[1641711915064,1.29609434,3136.3,3136.2,1.63069339]
[1641711915668,1.29609434,3136.3,3136.2,0.00511581]
[1641711916268,1.25541,3136.6,3136.2,1.63069339]
[1641711916469,14.0,3136.5,3136.2,1.63069339]
[1641711916668,9.458,3136.6,3136.2,1.63069339]
[1641711916913,0.458,3136.6,3136.2,0.00511581]
[1641711917316,0.458,3136.6,3135.9,0.7974]
[1641711917514,1.60678486,3136.6,3136.0,1.29781625]
[1641711917714,1.60678486,3136.6,3136.5,1.62539401]
[1641711917919,1.25541,3136.6,3136.5,1.62539401]
[1641711918113,0.458,3136.6,3136.5,1.62880455]
[1641711918715,0.458,3136.6,3136.5,0.00341054]
[1641711919717,0.458,3136.6,3136.2,0.30511581]
[1641711920020,9.0,3136.7,3136.3,0.79731]
[1641711920225,1.62029634,3136.8,3136.4,3.18508714]
[1641711920416,5.88996173,3137.0,3136.4,21.9487561]
[1641711920667,5.88996173,3137.0,3136.8,0.96336]
[1641711920865,4.44526173,3137.0,3136.9,0.3]
[1641711921063,4.44526173,3137.0,3136.9,13.15113685]
[1641711921263,2.92866173,3137.0,3136.9,13.15113685]
[1641711921565,2.92866173,3137.0,3136.9,14.15113685]
[1641711921963,2.92866173,3137.0,3136.9,13.15113685]
[1641711922264,2.92866173,3137.0,3136.9,14.15113685]
[1641711922862,2.92866173,3137.0,3136.9,1.30113685]
[1641711923064,2.92866173,3137.0,3136.9,0.30113685]
[1641711923262,2.92866173,3137.0,3136.9,0.00113685]
[1641711923863,2.92866173,3137.0,3136.8,0.00170527]
[1641711925721,2.92866173,3137.0,3136.9,1.61886814]
[1641711926122,2.92866173,3137.0,3136.9,1.62000499]
[1641711926322,2.92866173,3137.0,3136.9,9.37000499]
[1641711926523,2.92866173,3137.0,3136.9,7.75113685]
[1641711926725,2.92866173,3137.0,3136.9,0.00113685]
[1641711927228,8.22866173,3137.0,3136.9,0.00113685]
[1641711927426,2.92866173,3137.0,3136.9,1.62000499]
[1641711928366,2.92866173,3137.0,3136.9,0.00113685]
[1641711931071,2.92866173,3137.0,3136.9,1.62000499]
[1641711931271,2.92866173,3137.0,3136.9,7.62000499]
[1641711931470,2.92866173,3137.0,3136.9,1.62000499]
[1641711933219,2.92866173,3137.0,3136.9,0.00113685]
[1641711934015,2.92866173,3137.0,3136.9,1.62000499]
[1641711934619,2.92866173,3137.0,3136.9,0.00113685]
[1641711935018,2.92866173,3137.0,3136.8,0.00170527]
[1641711935423,2.92866173,3137.0,3136.9,1.61996054]
[1641711935886,2.92866173,3137.0,3136.9,1.62109739]
[1641711936180,2.92866173,3137.0,3136.9,0.30113685]
[1641711936492,2.84919,3139.0,3137.7,0.79691]
[1641711936686,2.84919,3139.0,3138.5,1.3144176]
[1641711936881,1.32633452,3139.1,3138.5,2.0713176]
[1641711937079,0.458,3139.5,3138.5,2.0713176]
[1641711937282,0.01080005,3139.0,3138.5,2.0713176]
[1641711937679,0.01023162,3138.9,3138.5,2.0713176]
[1641711938080,0.0096632,3138.8,3138.5,2.0713176]
[1641711938485,0.00909477,3138.7,3138.5,0.7569]
[1641711938682,0.00909477,3138.7,3138.4,0.5089]
[1641711938882,0.00852635,3138.6,3138.2,3.18313534]
[1641711939323,1.26039685,3139.1,3137.3,2.39041]
[1641711939324,1.76678442,3138.2,3137.3,2.39041]
[1641711939529,1.76678442,3138.2,3137.0,6.98673203]
[1641711939530,0.62898925,3137.4,3137.0,4.20234203]
[1641711939726,0.458,3137.3,3137.0,4.20234203]
[1641711939924,16.8,3137.2,3136.9,0.00113685]
[1641711940125,0.458,3137.1,3136.9,0.00113685]
[1641711940325,0.458,3137.1,3136.4,0.00397896]
[1641711940627,1.359014,3137.1,3135.8,0.00738951]
[1641711940826,5.724,3136.5,3136.0,1.17720584]
[1641711941030,0.458,3136.4,3136.0,1.17720584]
[1641711941225,0.458,3136.4,3136.1,0.00568424]